bitfinex/quotes_SOLUSD_20241024
["timestamp","ask_amount","ask_price","bid_price","bid_amount"]
[1729780934682,66.39957148,176.57,176.51,61.35274188]
[1729780934883,60.73597148,176.56,176.51,61.35274188]
[1729780935194,66.39887148,176.59,176.53,60.73597148]
[1729780935381,60.73597148,176.58,176.53,60.73597148]
[1729780935579,60.73597148,176.55,176.51,0.6167704]
[1729780935784,60.73597148,176.52,176.51,0.6167704]
[1729780937590,66.40097148,176.52,176.51,0.6167704]
[1729780937900,86.40097148,176.52,176.51,0.6167704]
[1729780938204,93.10177148,176.52,176.51,0.6167704]
[1729780939598,0.2,176.5,176.37,60.73597148]
[1729780939800,60.73597148,176.42,176.37,60.73597148]
[1729780939997,60.73597148,176.43,176.38,60.73597148]
[1729780940889,63.26250468,176.43,176.38,60.73597148]
[1729780941897,63.26250468,176.43,176.36,2.09095284]
[1729780941898,63.26250468,176.43,176.37,60.73597148]
[1729780942602,63.26250468,176.43,176.38,60.73597148]
[1729780942812,63.26250468,176.43,176.36,2.09095284]
[1729780942813,2.5265332,176.43,176.42,60.73597148]
[1729780943593,2.5265332,176.43,176.34,2.08226741]
[1729780943797,2.5265332,176.43,176.39,60.73597148]
[1729780944402,2.5265332,176.43,176.4,38.21044802]
[1729780944704,2.5265332,176.43,176.41,38.21044802]
[1729780944897,2.5265332,176.43,176.42,38.21044802]
[1729780945988,2.5265332,176.43,176.42,38.33593802]
[1729780946390,2.5265332,176.43,176.42,61.19234216]
[1729780946585,22.7716,176.57,176.43,20.25098]
[1729780946891,6.5319,176.57,176.56,61.06685216]
[1729780947188,6.5319,176.57,176.55,61.06685216]
[1729780947601,12.1953,176.57,176.54,61.06685216]
[1729780948207,61.06685216,176.56,176.51,61.06685216]
[1729780948409,6.5319,176.57,176.55,61.06685216]
[1729780948787,0.588918,176.59,176.56,61.06685216]
[1729780948987,0.588918,176.59,176.58,61.06685216]
[1729780951490,0.588918,176.59,176.56,61.06685216]
[1729780951721,0.588918,176.59,176.57,61.06685216]
[1729780952014,0.588918,176.59,176.58,61.06685216]
[1729780952326,21.9594,176.65,176.58,61.06685216]
[1729780952327,6.63978983,176.76,176.63,0.1]
[1729780952487,24.56198199,176.78,176.73,61.06685216]
[1729780952692,30.21878199,176.78,176.73,61.06685216]
[1729780952891,30.21878199,176.78,176.74,61.06685216]
[1729780953512,30.21878199,176.78,176.73,61.06685216]
[1729780953714,30.21878199,176.78,176.74,61.06685216]
[1729780955101,36.87944408,176.77,176.7,30.53342608]
[1729780955410,61.06685216,176.73,176.67,61.06685216]
[1729780955595,61.06685216,176.72,176.66,61.06685216]
[1729780955796,61.06685216,176.74,176.68,61.06685216]
[1729780956709,66.72515216,176.73,176.67,61.06685216]
[1729780957309,66.72515216,176.73,176.58,22.8271]
[1729780957310,61.06685216,176.7,176.58,22.8271]
[1729780957611,61.06685216,176.71,176.66,61.06685216]
[1729780958392,61.06685216,176.72,176.66,61.06685216]
[1729780958595,5.6587,176.72,176.68,61.06685216]
[1729780959115,66.72555216,176.72,176.66,61.06685216]
[1729780960125,61.06685216,176.7,176.65,61.06685216]
[1729780960293,61.06685216,176.69,176.64,61.06685216]
[1729780960911,61.06685216,176.7,176.64,61.06685216]
[1729780961303,61.06685216,176.7,176.65,61.06685216]
[1729780961711,66.72625216,176.7,176.65,61.06685216]
[1729780962210,5.6594,176.7,176.65,61.06685216]
[1729780963123,5.6594,176.7,176.66,61.06685216]
[1729780963297,5.6594,176.7,176.65,61.06685216]
[1729780963497,66.72625216,176.7,176.64,61.06685216]
[1729780963697,66.72625216,176.7,176.58,83.89395216]
[1729780963698,5.6594,176.7,176.65,61.06685216]
[1729780963918,5.6586,176.72,176.68,61.06685216]
[1729780964721,66.72505216,176.74,176.69,61.06685216]
[1729780964925,5.6582,176.74,176.69,61.06685216]
[1729780965217,66.72505216,176.74,176.68,61.06685216]
[1729780965608,66.72505216,176.74,176.69,61.06685216]
[1729780966521,5.6582,176.74,176.69,61.06685216]
[1729780966824,0.588918,176.77,176.72,61.06685216]
[1729780967022,6.246018,176.77,176.72,61.06685216]
[1729780967314,0.588918,176.77,176.75,61.06685216]
[1729780967713,0.588918,176.77,176.74,61.06685216]
[1729780967917,61.06685216,176.75,176.7,61.06685216]
[1729780968418,0.1,176.72,176.59,2.02005686]
[1729780968609,83.91605216,176.72,176.66,61.06685216]
[1729780968817,22.8492,176.72,176.67,61.06685216]
[1729780969608,59.04142608,176.72,176.67,30.53342608]
[1729780969811,61.06685216,176.71,176.66,61.06685216]
[1729780970008,61.06685216,176.71,176.65,61.06685216]
[1729780970214,61.06685216,176.7,176.64,61.06685216]
[1729780970412,61.06685216,176.71,176.66,61.06685216]
[1729780970819,28.508,176.72,176.67,61.06685216]
[1729780971026,28.508,176.72,176.66,61.06685216]
[1729780971027,89.57485216,176.72,176.66,61.06685216]
[1729780971215,89.57485216,176.72,176.59,20.12549]
[1729780971216,89.57485216,176.72,176.67,61.06685216]
[1729780971418,61.06685216,176.74,176.69,61.06685216]
[1729780971812,61.06685216,176.74,176.68,61.06685216]
[1729780972014,61.06685216,176.71,176.66,61.06685216]
[1729780972211,61.06685216,176.69,176.63,30.53342608]
[1729780972530,61.06685216,176.68,176.62,61.06685216]
[1729780972915,61.06685216,176.67,176.62,61.06685216]
[1729780973129,61.06685216,176.64,176.58,22.8271]
[1729780973329,61.06685216,176.64,176.59,61.06685216]
[1729780973529,61.06685216,176.65,176.59,61.06685216]
[1729780973823,61.06685216,176.67,176.62,61.06685216]
[1729780974216,61.06685216,176.67,176.61,61.06685216]
[1729780975617,61.06685216,176.65,176.59,61.06685216]
[1729780976228,61.06685216,176.63,176.57,61.06685216]
[1729780976844,61.06685216,176.62,176.57,61.06685216]
[1729780977141,61.06685216,176.63,176.57,61.06685216]
[1729780977807,61.06685216,176.61,176.55,61.06685216]
[1729780978509,61.06685216,176.62,176.56,61.06685216]
[1729780979215,61.06685216,176.62,176.57,61.06685216]
[1729780979536,61.06685216,176.63,176.58,61.06685216]
[1729780979928,61.06685216,176.64,176.58,61.06685216]
[1729780980226,61.06685216,176.62,176.57,61.06685216]
[1729780981419,61.06685216,176.63,176.57,61.06685216]
[1729780982838,61.06685216,176.63,176.58,61.06685216]
[1729780983034,61.06685216,176.62,176.57,61.06685216]
[1729780984011,61.06685216,176.6,176.51,20.12549]
[1729780984213,61.06685216,176.55,176.5,61.06685216]
[1729780984434,61.06685216,176.54,176.48,61.06685216]
[1729780984631,61.06685216,176.53,176.47,61.06685216]
[1729780984823,61.06685216,176.52,176.46,61.06685216]
[1729780985013,61.06685216,176.53,176.48,61.06685216]
[1729780985441,61.06685216,176.52,176.46,61.06685216]
[1729780985735,61.06685216,176.5,176.44,61.06685216]
[1729780985941,61.06685216,176.47,176.42,61.06685216]
[1729780986317,61.06685216,176.49,176.43,61.06685216]
[1729780986634,61.06685216,176.48,176.43,61.06685216]
[1729780987014,61.06685216,176.48,176.38,6.1986]
[1729780987228,61.06685216,176.48,176.43,61.06685216]
[1729780987733,61.06685216,176.48,176.38,6.1986]
[1729780987734,61.06685216,176.54,176.47,61.06685216]
[1729780987945,61.06685216,176.53,176.48,61.06685216]
[1729780988140,61.06685216,176.53,176.47,61.06685216]
[1729780988336,61.06685216,176.52,176.47,61.06685216]
[1729780988719,61.06685216,176.51,176.46,61.06685216]
[1729780988940,61.06685216,176.49,176.44,61.06685216]
[1729780989222,61.06685216,176.49,176.43,61.06685216]
[1729780989820,0.1,176.54,176.43,61.06685216]
[1729780989821,61.06685216,176.48,176.43,61.06685216]
[1729780990032,61.06685216,176.48,176.42,61.06685216]
[1729780990345,61.06685216,176.47,176.42,61.06685216]
[1729780991440,61.06685216,176.48,176.42,61.06685216]
[1729780991940,61.06685216,176.52,176.46,61.06685216]
[1729780992234,61.06685216,176.5,176.45,61.06685216]
[1729780992436,61.06685216,176.48,176.42,61.06685216]
[1729780992638,61.06685216,176.47,176.42,61.06685216]
[1729780992820,61.06685216,176.47,176.38,6.1986]
[1729780992821,61.06685216,176.46,176.41,61.06685216]
[1729780993141,61.06685216,176.44,176.38,61.06685216]
[1729780993349,61.06685216,176.43,176.37,61.06685216]
[1729780993646,61.06685216,176.41,176.36,61.06685216]
[1729780993833,61.06685216,176.41,176.34,6.3666]
[1729780993834,61.06685216,176.4,176.34,61.06685216]
[1729780994443,61.06685216,176.4,176.35,61.06685216]
[1729780995342,61.06685216,176.41,176.35,61.06685216]
[1729780995543,61.06685216,176.37,176.27,2.03679221]
[1729780995847,61.06685216,176.34,176.29,61.06685216]
[1729780996040,61.06685216,176.33,176.28,61.06685216]
[1729780996731,61.06685216,176.33,176.25,21.8758]
[1729780996732,61.06685216,176.3,176.25,61.06685216]
[1729780997125,61.06685216,176.29,176.23,61.06685216]
[1729780997530,61.06685216,176.3,176.24,61.06685216]
[1729780997737,61.06685216,176.29,176.23,61.06685216]
[1729780998052,61.06685216,176.29,176.24,61.06685216]
[1729780998258,61.06685216,176.3,176.25,61.06685216]
[1729780999132,61.06685216,176.29,176.23,61.06685216]
[1729780999357,61.06685216,176.28,176.22,61.06685216]
[1729780999952,61.06685216,176.27,176.22,61.06685216]
[1729781000167,30.53342608,176.26,176.2,30.53342608]
[1729781000341,61.06685216,176.24,176.19,61.06685216]
[1729781000839,61.06685216,176.24,176.18,61.06685216]
[1729781001041,61.06685216,176.24,176.19,61.06685216]
[1729781001945,61.06685216,176.26,176.2,61.06685216]
[1729781002952,61.06685216,176.25,176.2,61.06685216]
[1729781003548,30.53342608,176.24,176.2,30.53342608]
[1729781003752,61.06685216,176.26,176.21,61.06685216]
[1729781003957,15.6513,176.29,176.16,0.588918]
[1729781003958,61.06685216,176.32,176.25,61.06685216]
[1729781004151,61.06685216,176.31,176.26,61.06685216]
[1729781004854,61.06685216,176.3,176.25,61.06685216]
[1729781005355,61.06685216,176.3,176.24,61.06685216]
[1729781005559,61.06685216,176.3,176.25,61.06685216]
[1729781006258,66.73895216,176.31,176.25,61.06685216]
[1729781006851,61.06685216,176.3,176.25,61.06685216]
[1729781007334,66.73895216,176.31,176.25,61.06685216]
[1729781007555,61.06685216,176.33,176.27,61.06685216]
[1729781007745,61.06685216,176.31,176.25,61.06685216]
[1729781007950,61.06685216,176.33,176.27,61.06685216]
[1729781008259,82.34325216,176.35,176.29,61.06685216]
[1729781008438,61.06685216,176.34,176.28,61.06685216]
[1729781008638,61.06685216,176.33,176.28,61.06685216]
[1729781008838,61.06685216,176.34,176.28,61.06685216]
[1729781009633,61.06685216,176.29,176.23,61.06685216]
[1729781010053,61.06685216,176.28,176.22,61.06685216]
[1729781011146,30.53342608,176.26,176.21,61.06685216]
[1729781011341,61.06685216,176.24,176.16,16.000318]
[1729781011541,61.06685216,176.24,176.18,61.06685216]
[1729781011941,61.06685216,176.25,176.19,61.06685216]
[1729781012351,61.06685216,176.24,176.19,61.06685216]
[1729781012553,61.06685216,176.24,176.18,61.06685216]
[1729781013550,67.09305216,176.25,176.2,61.06685216]
[1729781013737,6.0262,176.3,176.24,61.06685216]
[1729781013941,6.0262,176.3,176.16,0.588918]
[1729781013942,67.09305216,176.3,176.25,61.06685216]
[1729781014249,61.06685216,176.29,176.24,61.06685216]
[1729781014649,61.06685216,176.31,176.25,30.53342608]
[1729781014855,15.4039,176.33,176.29,61.06685216]
[1729781015156,15.4039,176.33,176.28,61.06685216]
[1729781015353,76.47075216,176.33,176.28,61.06685216]
[1729781015557,15.4039,176.33,176.29,61.06685216]
[1729781015743,15.4039,176.33,176.29,30.53342608]
[1729781015950,15.4039,176.33,176.28,61.06685216]
[1729781016354,6.0262,176.34,176.3,61.06685216]
[1729781016548,66.73725216,176.36,176.31,61.06685216]
[1729781017666,61.06685216,176.35,176.29,61.06685216]
[1729781018252,61.06685216,176.34,176.29,61.06685216]
[1729781018468,61.06685216,176.31,176.26,61.06685216]
[1729781018670,61.06685216,176.32,176.26,61.06685216]
[1729781018844,61.06685216,176.31,176.26,61.06685216]
[1729781019543,61.06685216,176.3,176.25,61.06685216]
[1729781019742,61.06685216,176.27,176.21,61.06685216]
[1729781020166,61.06685216,176.28,176.22,61.06685216]
[1729781020345,61.06685216,176.28,176.23,61.06685216]
[1729781020548,61.06685216,176.28,176.22,61.06685216]
[1729781021049,66.73975216,176.28,176.22,61.06685216]
[1729781021647,61.19234216,176.27,176.22,61.06685216]
[1729781021862,61.06685216,176.26,176.21,61.06685216]
[1729781022261,61.19234216,176.27,176.21,61.06685216]
[1729781022662,0.12549,176.27,176.22,61.06685216]
[1729781022863,61.19234216,176.27,176.22,61.06685216]
[1729781023249,66.86544216,176.27,176.21,61.06685216]
[1729781023451,61.06685216,176.26,176.2,61.06685216]
[1729781023856,61.06685216,176.25,176.19,61.06685216]
[1729781024041,61.19234216,176.27,176.22,61.06685216]
[1729781024756,15.3356,176.28,176.23,61.06685216]
[1729781024961,67.39955216,176.29,176.23,61.06685216]
[1729781025451,0.12549,176.28,176.23,61.06685216]
[1729781025651,61.19234216,176.28,176.23,61.06685216]
[1729781026267,0.12549,176.28,176.23,61.06685216]
[1729781026570,61.19234216,176.28,176.23,61.06685216]
[1729781026760,0.12549,176.28,176.23,61.06685216]
[1729781026958,6.3327,176.29,176.24,61.06685216]
[1729781027257,61.06685216,176.28,176.23,61.06685216]
[1729781027458,61.06685216,176.26,176.21,20.0]
[1729781027670,61.06685216,176.26,176.21,81.06685216]
[1729781027965,61.06685216,176.27,176.21,81.06685216]
[1729781028754,15.4512,176.32,176.26,61.06685216]
[1729781028966,15.4512,176.32,176.27,61.06685216]
[1729781029167,82.18955216,176.32,176.27,61.06685216]
[1729781029401,76.51805216,176.32,176.27,61.06685216]
[1729781029576,61.06685216,176.33,176.27,61.06685216]
[1729781029748,61.06685216,176.32,176.26,61.06685216]
[1729781030351,6.57,176.34,176.29,61.06685216]
[1729781030651,61.06685216,176.32,176.26,61.06685216]
[1729781031046,61.06685216,176.33,176.27,61.06685216]
[1729781031259,73.43324216,176.34,176.28,61.06685216]
[1729781031454,61.19234216,176.33,176.27,61.06685216]
[1729781031662,61.06685216,176.32,176.26,61.06685216]
[1729781031867,61.06685216,176.32,176.27,61.06685216]
[1729781032254,0.12549,176.33,176.27,61.06685216]
[1729781032255,61.19234216,176.33,176.27,61.06685216]
[1729781032879,61.06685216,176.31,176.26,61.06685216]
[1729781034875,66.73835216,176.32,176.26,61.06685216]
[1729781035677,61.06685216,176.29,176.23,61.06685216]
[1729781035887,61.06685216,176.29,176.24,20.0]
[1729781036062,61.06685216,176.29,176.24,81.06685216]
[1729781037059,0.12549,176.29,176.24,81.06685216]
[1729781037382,0.25098,176.29,176.24,61.06685216]
[1729781037764,61.06685216,176.28,176.23,61.06685216]
[1729781038464,61.31783216,176.29,176.23,61.06685216]
[1729781038876,61.06685216,176.3,176.24,61.06685216]
[1729781039078,0.12549,176.3,176.25,61.06685216]
[1729781039467,61.06685216,176.31,176.25,61.06685216]
[1729781039985,0.25098,176.31,176.26,61.06685216]
[1729781040171,61.31783216,176.31,176.25,61.06685216]
[1729781040369,61.31783216,176.31,176.25,81.06685216]
[1729781040758,0.25098,176.31,176.26,61.06685216]
[1729781040961,0.12549,176.31,176.27,61.06685216]
[1729781041685,0.12549,176.32,176.27,61.06685216]
[1729781041980,0.12549,176.32,176.28,61.06685216]
[1729781042480,44.81922698,176.34,176.29,19.12461349]
[1729781042683,60.15422698,176.36,176.31,38.24922698]
[1729781042986,16.2346,176.36,176.32,38.24922698]
[1729781043558,0.12549,176.37,176.32,38.24922698]
[1729781043982,50.14072698,176.38,176.32,38.24922698]
[1729781044481,73.05898258,176.38,176.32,61.16748258]
[1729781044888,0.12549,176.37,176.32,61.16748258]
[1729781045182,0.25098,176.37,176.33,61.16748258]
[1729781046887,61.16748258,176.36,176.3,61.16748258]
[1729781047071,24.027864,176.35,176.3,61.16748258]
[1729781047272,61.41846258,176.35,176.3,61.16748258]
[1729781047473,61.16748258,176.32,176.27,61.16748258]
[1729781048180,61.29297258,176.33,176.27,61.16748258]
[1729781048388,0.25098,176.33,176.29,61.16748258]
[1729781048573,0.25098,176.33,176.28,61.16748258]
[1729781049774,61.16748258,176.32,176.27,61.16748258]
[1729781049973,66.83898258,176.32,176.26,61.16748258]
[1729781050391,61.16748258,176.27,176.16,23.768018]
[1729781050688,30.58374129,176.27,176.17,0.1]
[1729781050884,61.16748258,176.28,176.17,0.1]
[1729781051388,61.41846258,176.27,176.16,23.668018]
[1729781051574,61.41846258,176.27,176.21,61.16748258]
[1729781051781,61.16748258,176.26,176.21,61.16748258]
[1729781052770,61.29297258,176.27,176.21,61.16748258]
[1729781053178,0.12549,176.27,176.22,61.16748258]
[1729781053796,0.12549,176.26,176.21,61.16748258]
[1729781054378,61.29297258,176.26,176.21,61.16748258]
[1729781054578,0.12549,176.26,176.21,61.16748258]
[1729781054991,0.12549,176.26,176.22,61.16748258]
[1729781055298,15.5759,176.31,176.25,61.16748258]
[1729781055599,15.5759,176.31,176.27,61.16748258]
[1729781055792,21.2478,176.31,176.26,61.16748258]
[1729781055988,0.12549,176.3,176.26,61.16748258]
[1729781056895,30.58374129,176.27,176.16,0.588918]
[1729781057100,0.12549,176.16,176.1,61.16748258]
[1729781057297,24.027864,176.16,176.1,61.16748258]
[1729781057600,0.12549,176.15,176.1,61.16748258]
[1729781058395,0.12549,176.15,176.09,61.16748258]
[1729781058800,0.12549,176.15,176.04,61.26748258]
[1729781058801,23.902374,176.18,176.12,61.16748258]
[1729781059176,0.12549,176.17,176.12,61.16748258]
[1729781059676,0.12549,176.18,176.12,61.16748258]
[1729781059887,61.16748258,176.19,176.13,61.16748258]
[1729781059888,0.12549,176.19,176.13,61.16748258]
[1729781060083,0.12549,176.19,176.14,61.16748258]
[1729781060388,61.16748258,176.19,176.13,61.16748258]
[1729781060585,85.19534658,176.2,176.13,61.16748258]
[1729781061193,61.16748258,176.18,176.12,61.16748258]
[1729781061398,61.16748258,176.19,176.12,61.16748258]
[1729781061587,61.16748258,176.18,176.11,61.16748258]
[1729781061786,61.16748258,176.18,176.12,61.16748258]
[1729781062322,61.16748258,176.18,176.08,0.1]
[1729781062323,61.16748258,176.18,176.11,61.16748258]
[1729781062606,61.16748258,176.17,176.11,61.16748258]
[1729781062905,61.16748258,176.16,176.09,61.16748258]
[1729781063208,61.16748258,176.14,176.08,61.16748258]
[1729781064083,61.16748258,176.15,176.08,61.16748258]
[1729781064587,61.16748258,176.15,176.09,61.16748258]
[1729781065107,61.16748258,176.15,176.08,61.16748258]
[1729781065897,61.16748258,176.14,176.07,61.16748258]
[1729781066601,61.16748258,176.13,176.07,61.16748258]
[1729781067323,66.84508258,176.13,176.07,61.16748258]
[1729781067605,61.16748258,176.12,176.06,61.16748258]
[1729781068516,61.16748258,176.1,176.04,61.16748258]
[1729781068809,61.16748258,176.11,176.05,61.16748258]
[1729781069186,61.29297258,176.12,176.06,61.16748258]
[1729781069585,61.16748258,176.1,176.04,61.16748258]
[1729781070501,44.83935756,176.1,176.04,38.34685756]
[1729781070695,23.902374,176.04,175.98,0.588918]
[1729781070896,38.34685756,176.03,175.98,0.588918]
[1729781071810,38.34685756,176.04,175.98,0.588918]
[1729781072397,61.39761658,176.04,175.98,61.98653458]
[1729781072808,61.39761658,176.05,175.98,61.98653458]
[1729781073113,61.39761658,176.07,176.0,61.39761658]
[1729781073313,61.39761658,176.08,176.01,61.39761658]
[1729781073805,61.39761658,176.09,176.03,61.39761658]
[1729781074186,61.39761658,176.1,176.04,61.39761658]
[1729781074388,61.39761658,176.09,176.03,61.39761658]
[1729781074610,5.6776,176.13,176.02,61.39761658]
[1729781074796,61.39761658,176.08,176.02,61.39761658]
[1729781076093,61.39761658,176.13,176.07,61.39761658]
[1729781076396,61.39761658,176.14,176.08,61.39761658]
[1729781076899,5.6766,176.16,176.1,61.39761658]
[1729781076900,61.39761658,176.16,176.1,61.39761658]
[1729781077101,61.39761658,176.17,176.11,61.39761658]
[1729781077513,61.39761658,176.18,176.12,61.39761658]
[1729781078313,61.39761658,176.17,176.12,61.39761658]
[1729781078914,61.39761658,176.18,176.12,61.39761658]
[1729781079420,61.39761658,176.17,176.12,61.39761658]
[1729781079997,61.39761658,176.17,176.11,61.39761658]
[1729781080209,61.39761658,176.16,176.1,61.39761658]
[1729781081300,61.39761658,176.17,176.11,61.39761658]
[1729781082217,61.39761658,176.18,176.12,61.39761658]
[1729781082412,61.52310658,176.19,176.13,61.39761658]
[1729781082712,61.39761658,176.2,176.14,61.39761658]
[1729781082910,67.07291658,176.2,176.14,61.39761658]
[1729781083106,61.39761658,176.21,176.15,61.39761658]
[1729781083309,61.39761658,176.16,176.05,2.04874056]
[1729781083618,61.39761658,176.16,175.98,0.688918]
[1729781083619,61.39761658,176.09,176.03,61.39761658]
[1729781084104,0.1,176.16,175.98,0.588918]
[1729781084105,61.39761658,176.08,176.02,61.39761658]
[1729781084506,61.39761658,176.08,176.01,61.39761658]
[1729781084704,61.39761658,176.08,175.98,0.588918]
[1729781084705,61.39761658,176.07,176.0,61.39761658]
[1729781085097,61.39761658,176.06,175.99,61.39761658]
[1729781085314,61.39761658,176.04,175.98,61.98653458]
[1729781086501,61.39761658,176.04,175.98,0.588918]
[1729781086908,61.39761658,176.03,175.98,0.588918]
[1729781089118,61.39761658,176.02,175.98,0.588918]
[1729781089323,61.39761658,176.03,175.98,0.588918]
[1729781090405,61.39761658,176.02,175.98,0.588918]
[1729781091329,61.39761658,175.99,175.98,0.588918]
[1729781091710,61.39761658,176.0,175.98,0.588918]
[1729781092320,61.39761658,175.99,175.98,0.588918]
[1729781092621,61.39761658,176.04,175.98,0.588918]
[1729781092622,61.39761658,176.01,175.98,0.588918]
[1729781093442,61.39761658,176.03,175.98,0.588918]
[1729781093624,61.39761658,176.04,175.98,61.98653458]
[1729781093811,61.39761658,176.03,175.98,0.588918]
[1729781094003,61.39761658,176.02,175.98,0.588918]
[1729781096228,61.39761658,176.03,175.98,0.588918]
[1729781096707,61.39761658,176.02,175.98,0.588918]
[1729781096908,61.39761658,176.03,175.98,0.588918]
[1729781097209,61.39761658,176.02,175.98,0.588918]
[1729781098013,61.39761658,176.01,175.98,0.588918]
[1729781099725,61.39761658,175.99,175.98,0.588918]
[1729781100321,61.52310658,175.99,175.98,0.588918]
[1729781100520,61.64859658,175.99,175.98,0.588918]
[1729781100830,111.23307058,175.99,175.98,0.588918]
[1729781101720,111.23307058,175.99,175.82,0.1]
[1729781101721,0.1,175.96,175.82,0.1]
[1729781101919,0.25098,175.94,175.82,61.39761658]
[1729781102111,61.39761658,175.88,175.82,61.39761658]
[1729781102306,0.12549,175.93,175.83,61.39761658]
[1729781102522,61.39761658,175.9,175.83,61.39761658]
[1729781102829,61.39761658,175.89,175.83,61.39761658]
[1729781103130,61.39761658,175.88,175.82,61.39761658]
[1729781104029,5.80969,175.93,175.84,61.39761658]
[1729781104030,61.39761658,175.9,175.84,61.39761658]
[1729781104616,61.39761658,175.89,175.83,61.39761658]
[1729781104942,61.39761658,175.89,175.84,30.69880829]
[1729781105115,61.39761658,175.9,175.84,61.39761658]
[1729781105539,61.39761658,175.89,175.83,61.39761658]
[1729781105916,61.39761658,175.88,175.82,61.39761658]
[1729781106232,30.69880829,175.84,175.81,0.588918]
[1729781106418,61.39761658,175.82,175.81,0.588918]
[1729781106946,111.23857058,175.82,175.81,0.588918]
[1729781107118,49.840954,175.82,175.81,0.588918]
[1729781107312,111.23857058,175.82,175.81,0.588918]
[1729781107512,49.840954,175.82,175.81,0.588918]
[1729781107732,61.39761658,175.82,175.81,0.588918]
[1729781107937,61.39761658,175.83,175.81,0.588918]
[1729781108118,61.52310658,175.82,175.81,0.588918]
[1729781108315,61.64859658,175.82,175.81,0.588918]
[1729781108724,23.776884,175.83,175.81,0.588918]
[1729781108725,61.39761658,175.83,175.81,0.588918]
[1729781109127,61.39761658,175.83,175.81,0.088918]
[1729781109429,20.8115,175.9,175.81,0.088918]
[1729781109430,61.39761658,175.85,175.81,0.088918]
[1729781110328,61.39761658,175.9,175.84,61.39761658]
[1729781111014,11.7467,175.94,175.85,61.39761658]
[1729781111213,61.39761658,175.9,175.85,61.39761658]
[1729781111834,61.39761658,175.9,175.84,61.39761658]
[1729781112544,61.39761658,175.9,175.84,60.89761658]
[1729781112911,61.39761658,175.88,175.82,61.39761658]
[1729781113118,5.6846,175.92,175.81,0.088918]
[1729781113119,61.39761658,175.84,175.81,0.088918]
[1729781113323,5.7846,175.92,175.81,0.088918]
[1729781113324,61.39761658,175.82,175.81,0.088918]
[1729781113520,85.55097058,175.82,175.81,0.088918]
[1729781113725,105.55097058,175.82,175.81,0.088918]
[1729781114831,85.55097058,175.82,175.81,0.088918]
[1729781115229,85.42548058,175.82,175.81,0.088918]
[1729781117119,61.39761658,175.82,175.81,0.088918]
[1729781117723,0.12549,175.85,175.81,0.088918]
[1729781118033,61.39761658,175.82,175.81,0.088918]
[1729781118425,61.39761658,175.84,175.81,0.088918]
[1729781118621,61.39761658,175.85,175.81,0.088918]
[1729781119237,61.39761658,175.84,175.81,0.088918]
[1729781119543,61.39761658,175.83,175.81,0.088918]
[1729781119734,61.39761658,175.82,175.81,0.088918]
[1729781120427,30.69880829,175.83,175.81,0.088918]
[1729781120628,61.39761658,175.83,175.81,0.088918]
[1729781121433,61.39761658,175.82,175.81,0.088918]
[1729781121950,61.39761658,175.83,175.81,0.088918]
[1729781122244,61.39761658,175.89,175.82,61.39761658]
[1729781122441,61.39761658,175.89,175.83,61.39761658]
[1729781122843,61.39761658,175.9,175.84,61.39761658]
[1729781123024,83.25931658,175.91,175.86,61.39761658]
[1729781123736,21.8617,175.91,175.86,61.39761658]
[1729781123938,61.39761658,175.92,175.86,61.39761658]
[1729781124128,61.39761658,175.93,175.87,61.39761658]
[1729781124335,67.08141658,175.94,175.88,61.39761658]
[1729781124751,0.12549,175.89,175.84,61.39761658]
[1729781124932,61.52310658,175.89,175.83,61.39761658]
[1729781125131,61.39761658,175.88,175.82,61.39761658]
[1729781125349,0.12549,175.86,175.81,61.48653458]
[1729781125649,61.39761658,175.85,175.81,0.088918]
[1729781125964,61.52310658,175.86,175.81,0.088918]
[1729781126131,61.52310658,175.86,175.81,61.48653458]
[1729781126327,61.52310658,175.86,175.81,0.088918]
[1729781126328,61.52310658,175.85,175.81,0.088918]
[1729781126634,0.12549,175.85,175.81,61.48653458]
[1729781126931,0.12549,175.88,175.83,61.39761658]
[1729781127235,0.12549,175.89,175.85,61.39761658]
[1729781127444,0.25098,175.89,175.85,61.39761658]
[1729781127649,0.25098,175.89,175.84,61.39761658]
[1729781128230,0.25098,175.89,175.85,61.39761658]
[1729781129355,61.39761658,175.88,175.83,61.39761658]
[1729781129560,0.12549,175.86,175.81,61.48653458]
[1729781129762,61.39761658,175.85,175.81,0.088918]
[1729781130060,61.64859658,175.84,175.81,0.088918]
[1729781130550,0.25098,175.82,175.81,0.088918]
[1729781130943,91.11308058,175.82,175.81,0.088918]
[1729781131253,61.39761658,175.82,175.81,0.088918]
[1729781131553,85.42548058,175.82,175.81,0.088918]
[1729781132234,120.74947058,175.82,175.81,0.088918]
[1729781132834,126.43707058,175.82,175.81,0.088918]
[1729781134956,126.43707058,175.82,175.67,16.3804]
[1729781134957,0.1,175.79,175.67,77.77801658]
[1729781135142,61.39761658,175.72,175.66,61.39761658]
[1729781135770,61.39761658,175.72,175.63,16.502218]